bitfinex/quotes_ETHUSD_20250210
["timestamp","ask_amount","ask_price","bid_price","bid_amount"]
[1739153560842,0.08329026,2574.1,2573.6,4.0304842]
[1739153561550,3.88444,2574.4,2573.6,1.01192262]
[1739153561712,3.96786026,2574.3,2573.8,3.8852]
[1739153562045,0.08329026,2574.3,2573.8,3.8852]
[1739153562528,3.88495,2574.1,2573.6,0.1449142]
[1739153562689,0.76985885,2574.9,2573.6,0.1449142]
[1739153562690,3.88517,2573.9,2573.6,0.1449142]
[1739153562894,3.88545,2573.7,2573.6,0.1449142]
[1739153563106,3.96742255,2573.7,2573.6,0.1449142]
[1739153563752,0.08197255,2573.7,2573.6,0.1449142]
[1739153564062,3.88517,2573.9,2573.6,0.1449142]
[1739153564259,0.08197255,2573.7,2573.6,0.1449142]
[1739153564544,3.88419,2574.6,2573.8,3.88529]
[1739153564845,0.07904496,2574.5,2573.9,4.349039]
[1739153565043,0.07904496,2574.5,2573.9,4.348959]
[1739153565209,3.88414,2574.6,2574.0,3.88485]
[1739153565410,0.07904496,2574.4,2574.0,3.88485]
[1739153565628,3.88396,2574.7,2574.1,3.8848]
[1739153565974,0.8328,2574.9,2574.2,3.8847]
[1739153566132,0.07904496,2574.6,2574.4,4.63811]
[1739153566465,3.88342,2575.1,2574.5,3.88411]
[1739153566864,3.88342,2575.1,2574.4,4.63811]
[1739153567024,3.88342,2575.1,2574.5,3.88424]
[1739153567573,0.8328,2575.2,2574.5,0.852235]
[1739153567874,4.716,2575.2,2574.6,3.88408]
[1739153568169,0.8328,2575.2,2574.6,3.88408]
[1739153568388,3.88311,2575.3,2574.6,3.88398]
[1739153568545,3.88335,2575.1,2574.6,3.88398]
[1739153568866,3.88335,2575.1,2574.6,0.9374345]
[1739153569292,3.88367,2574.9,2574.4,0.7538]
[1739153569425,3.88404,2574.7,2574.1,8.0771759]
[1739153569624,3.88404,2574.7,2574.1,1.5771759]
[1739153570020,4.71649,2574.9,2574.3,3.88453]
[1739153570344,3.88343,2575.1,2574.5,3.88424]
[1739153570861,7.76692,2575.1,2574.5,3.88424]
[1739153571168,4.71589,2575.3,2574.7,0.77]
[1739153571330,3.88299,2575.4,2574.7,0.77]
[1739153571526,3.88299,2575.4,2574.7,8.53768]
[1739153571743,7.76623,2575.3,2574.7,4.65384]
[1739153571948,3.88322,2575.2,2574.7,4.65384]
[1739153572528,3.88306,2575.3,2574.7,4.65384]
[1739153572729,3.88306,2575.3,2574.7,5.6153307]
[1739153572931,3.88279,2575.5,2574.7,1.7314907]
[1739153573130,4.70161,2575.6,2575.0,3.8834]
[1739153573369,4.70161,2575.6,2575.1,3.88334]
[1739153573370,3.88259,2575.6,2575.1,3.88334]
[1739153573574,3.88249,2575.7,2574.9,3.88353]
[1739153573575,3.88275,2575.5,2574.9,3.88353]
[1739153574776,3.88275,2575.5,2574.9,7.76708]
[1739153575077,3.88276,2575.5,2574.9,3.88353]
[1739153575376,3.88276,2575.5,2574.9,4.737269]
[1739153575940,3.88276,2575.5,2575.0,3.88348]
[1739153577585,3.8826,2575.6,2575.0,3.88348]
[1739153578667,3.88278,2575.5,2574.9,8.620819]
[1739153579182,3.88278,2575.5,2574.9,4.737269]
[1739153579701,3.8825,2575.7,2575.0,3.88342]
[1739153579999,0.819,2576.3,2575.3,3.0]
[1739153580197,0.819,2576.3,2575.5,3.88262]
[1739153580198,3.882,2576.0,2575.5,3.88262]
[1739153580349,3.88196,2576.1,2575.5,7.76527]
[1739153580690,3.88196,2576.1,2575.3,6.88292]
[1739153580893,3.88252,2575.7,2575.3,3.0]
[1739153581080,7.76505,2575.7,2575.3,3.0]
[1739153581393,0.07995739,2575.6,2575.3,3.03882957]
[1739153581561,0.07995739,2575.6,2575.5,3.88273]
[1739153581901,3.8815,2576.4,2575.6,3.88254]
[1739153582099,3.8815,2576.4,2575.8,3.88226]
[1739153582305,0.07995739,2576.3,2575.8,3.88226]
[1739153582804,3.96149739,2576.3,2575.6,3.88245]
[1739153582977,3.96149739,2576.3,2575.5,0.77]
[1739153582978,3.88187,2576.1,2575.5,0.77]
[1739153583184,3.88229,2575.8,2575.3,3.0]
[1739153583491,0.07995739,2575.7,2575.3,3.0]
[1739153583893,3.88217,2575.9,2575.3,6.88293]
[1739153584105,0.07995739,2575.6,2575.3,6.88293]
[1739153584270,3.88217,2575.9,2575.3,6.88293]
[1739153584623,0.07995739,2575.8,2575.3,6.88293]
[1739153584824,0.07995739,2575.8,2575.5,3.88264]
[1739153584996,0.07995739,2575.8,2575.6,3.88245]
[1739153585203,7.7633,2576.3,2575.6,3.88245]
[1739153585402,0.08059064,2575.7,2575.2,0.77]
[1739153585612,3.88317,2575.3,2574.9,0.77]
[1739153585910,3.88317,2575.3,2574.7,7.76772]
[1739153586112,3.96441941,2575.2,2574.6,4.65408]
[1739153586429,0.08113941,2575.2,2574.8,3.8837]
[1739153586625,0.08113941,2575.2,2574.7,3.88394]
[1739153586943,0.08113941,2575.2,2574.6,0.77]
[1739153586944,3.88336,2575.1,2574.6,0.77]
[1739153587107,3.88375,2574.9,2574.3,7.2884]
[1739153587441,0.8139,2575.2,2574.5,3.88409]
[1739153587629,0.08113941,2574.8,2574.5,3.88409]
[1739153587792,0.08113941,2574.8,2574.3,4.67285]
[1739153587793,3.88364,2574.9,2574.3,0.7884]
[1739153588127,0.08113941,2574.8,2574.3,4.67282]
[1739153588321,0.08113941,2574.8,2574.4,3.8844]
[1739153588633,0.08113941,2574.7,2574.6,3.0]
[1739153588800,0.08113941,2574.7,2574.6,6.88409]
[1739153588987,0.8139,2575.4,2574.9,3.88363]
[1739153589195,0.08113941,2575.3,2574.9,4.67203]
[1739153589461,0.08113941,2575.3,2574.9,5.39351785]
[1739153589659,3.88268,2575.6,2574.9,1.50988785]
[1739153589969,3.88351,2575.0,2574.5,6.5]
[1739153590340,3.88221,2575.9,2574.5,6.5]
[1739153590341,0.08113941,2574.9,2574.8,3.0]
[1739153590713,3.88264,2575.6,2574.9,0.7884]
[1739153590830,3.88291,2575.4,2574.9,0.7884]
[1739153591570,0.08113941,2575.3,2574.9,4.67203]
[1739153591868,3.88293,2575.4,2574.9,1.943988]
[1739153592050,0.08113941,2575.2,2574.9,1.943988]
[1739153592256,3.88293,2575.4,2574.9,1.943988]
[1739153592471,0.08113941,2575.1,2574.9,1.943988]
[1739153592673,3.88293,2575.4,2574.9,1.943988]
[1739153592874,0.08113941,2575.0,2574.9,1.943988]
[1739153593045,3.88293,2575.4,2574.9,1.943988]
[1739153593231,0.08113941,2575.0,2574.9,1.943988]
[1739153593435,3.88265,2575.6,2574.9,5.827598]
[1739153593771,0.8139,2575.9,2574.9,5.827598]
[1739153593772,0.8139,2575.9,2575.2,3.88305]
[1739153593971,0.8139,2575.9,2575.0,4.08425171]
[1739153593972,9.20197,2576.1,2575.5,0.7884]
[1739153594140,3.88197,2576.1,2575.5,7.67109]
[1739153594335,4.69562,2576.2,2575.6,3.88249]
[1739153594552,4.69562,2576.2,2575.5,7.67109]
[1739153595137,3.88172,2576.2,2575.5,9.14267104]
[1739153595362,3.88188,2576.1,2575.5,9.14267104]
[1739153596086,3.0,2576.5,2575.3,3.16266044]
[1739153596245,3.8827,2575.6,2575.2,6.5]
[1739153596763,3.88242,2575.8,2575.1,6.88324]
[1739153597075,3.96377355,2575.7,2575.1,8.00207004]
[1739153597444,0.08133355,2575.7,2575.1,4.11883004]
[1739153597654,3.88294,2575.4,2575.0,3.16266044]
[1739153598038,0.08133355,2575.3,2574.9,0.7884]
[1739153598233,3.88328,2575.2,2574.9,0.7884]
[1739153598673,7.76659,2575.2,2574.7,3.16266044]
[1739153598880,0.08133355,2575.1,2574.5,4.6725]
[1739153599041,0.08133355,2575.1,2574.5,6.64504204]
[1739153599241,3.88328,2575.2,2574.5,6.64504204]
[1739153599540,3.88328,2575.2,2574.7,3.0]
[1739153599741,0.08133355,2575.1,2574.7,10.04659044]
[1739153599954,3.88328,2575.2,2574.7,10.04659044]
[1739153600176,0.08133355,2575.1,2574.7,11.71575369]
[1739153600479,0.8139,2575.6,2574.7,7.83182369]
[1739153600783,3.88339,2575.1,2574.6,3.0]
[1739153601078,0.08070033,2575.0,2574.6,3.0]
[1739153601495,0.08070033,2575.0,2574.6,6.88408]
[1739153601670,3.8833,2575.2,2574.6,6.88408]
[1739153601992,3.88309,2575.3,2574.8,3.88379]
[1739153602160,0.08070033,2575.2,2574.8,3.88379]
[1739153602357,0.08070033,2575.2,2574.7,3.16266044]
[1739153602694,3.88333,2575.2,2574.6,3.88408]
[1739153602874,0.8139,2575.6,2574.5,3.7884]
[1739153603072,0.08070033,2575.1,2574.6,3.88406]
[1739153603286,7.76597,2575.4,2574.7,7.04659044]
[1739153603607,3.88237,2575.8,2575.0,6.16266044]
[1739153603901,0.08073411,2575.3,2575.2,3.88319]
[1739153604099,3.88237,2575.8,2575.3,3.88303]
[1739153604297,3.88206,2576.0,2575.4,3.88278]
[1739153604597,3.88171,2576.2,2575.6,3.88248]
[1739153605317,3.88201,2576.0,2575.5,4.67112]
[1739153605661,3.88201,2576.0,2575.5,0.7884]
[1739153606000,3.88201,2576.0,2575.5,4.67111]
[1739153606200,3.88201,2576.0,2575.5,0.7884]
[1739153607101,7.76411,2576.0,2575.5,0.7884]
[1739153607284,3.8827,2575.6,2575.1,6.5]
[1739153607485,7.76543,2575.6,2575.1,6.5]
[1739153607685,3.88276,2575.5,2575.0,3.95106044]
[1739153608321,4.6966,2575.6,2575.0,7.83451044]
[1739153608619,4.69598,2576.0,2575.3,3.16266044]
[1739153608769,3.88229,2575.8,2575.3,3.16266044]
[1739153609100,3.88229,2575.8,2575.0,6.14365804]
[1739153609101,3.88213,2575.9,2575.0,3.95106044]
[1739153609309,0.8139,2576.0,2574.8,6.5]
[1739153609482,3.88328,2575.2,2574.8,6.5]
[1739153609687,3.88328,2575.2,2574.7,3.95106044]
[1739153609688,3.88328,2575.2,2574.7,0.7884]
[1739153610175,3.88365,2574.9,2574.5,1.08353504]
[1739153610381,3.88403,2574.7,2574.4,6.5]
[1739153610720,3.88391,2574.8,2574.2,3.88468]
[1739153610867,3.88355,2575.0,2574.4,7.04705044]
[1739153611209,0.08080171,2574.9,2574.4,7.04705044]
[1739153611966,3.88389,2574.8,2574.4,3.16266044]
[1739153612393,0.08080171,2574.7,2574.4,3.16266044]
[1739153612601,3.88375,2574.9,2574.4,3.16266044]
[1739153612766,0.08080171,2574.8,2574.4,4.25582748]
[1739153613167,3.96465171,2574.8,2574.4,4.25582748]
[1739153613469,0.08080171,2574.8,2574.6,3.88409]
[1739153613706,0.08080171,2574.8,2574.7,3.88394]
[1739153613882,3.88218,2575.9,2575.1,3.88332]
[1739153614187,0.08080171,2575.8,2575.7,3.88242]
[1739153614369,3.88048,2577.1,2575.8,0.7884]
[1739153614690,0.8139,2577.4,2576.6,3.88102]
[1739153614891,3.88008,2577.3,2576.4,4.66975]
[1739153615096,3.88046,2577.1,2576.4,4.66975]
[1739153615310,3.8805,2577.0,2576.4,4.66975]
[1739153615602,0.08080171,2576.9,2576.4,4.66975]
[1739153616017,3.88078,2576.8,2576.4,0.7884]
[1739153616611,0.08080171,2576.7,2576.4,0.7884]
[1739153616802,3.88078,2576.8,2576.4,0.7884]
[1739153617116,3.88007,2577.3,2576.4,0.7884]
[1739153617117,0.08080171,2576.7,2576.4,0.7884]
[1739153617322,0.08080171,2576.7,2576.5,0.39510604]
[1739153617526,3.88003,2577.3,2576.6,7.04374044]
[1739153617887,3.87976,2577.5,2576.7,6.88091]
[1739153617888,0.08080171,2577.2,2576.7,6.88091]
[1739153618224,3.87988,2577.4,2576.7,6.88089]
[1739153618383,0.08301248,2577.1,2576.8,1.39246304]
[1739153618584,3.87988,2577.4,2576.8,1.39246304]
[1739153618792,0.08302091,2577.3,2576.8,1.39246304]
[1739153619000,3.96306091,2577.3,2576.8,1.39246304]
[1739153619610,3.88019,2577.2,2576.7,3.0]
[1739153619888,0.08309681,2577.1,2576.7,3.0]
[1739153620310,3.88004,2577.3,2576.7,3.0]
[1739153620505,0.08309681,2577.0,2576.7,3.0]
[1739153620711,3.88004,2577.3,2576.7,3.0]
[1739153621023,3.88004,2577.3,2576.8,1.08137488]
[1739153621223,0.08309681,2577.2,2576.8,1.08137488]
[1739153621713,3.87986,2577.5,2576.9,0.785]
[1739153622032,3.8795,2577.7,2577.0,3.9192818]
[1739153622222,0.083198,2577.4,2577.1,4.66701422]
[1739153622423,3.87984,2577.5,2577.1,0.78669422]
[1739153622630,0.083198,2577.4,2577.1,0.78669422]
[1739153622929,0.083198,2577.4,2577.3,7.66502]
[1739153623130,3.87877,2578.2,2577.6,3.0]
[1739153623337,3.87883,2578.1,2577.6,3.0]
[1739153623548,3.962028,2578.1,2577.6,3.0]
[1739153624940,3.87926,2577.9,2577.3,0.785]
[1739153625150,3.87931,2577.8,2577.3,0.785]
[1739153625443,0.083198,2577.7,2577.4,3.87978]
[1739153625820,3.87898,2578.0,2577.5,3.87972]
[1739153626031,3.87898,2578.0,2577.5,4.646192]
[1739153626347,0.083198,2577.9,2577.5,4.646192]
[1739153626548,0.083198,2577.9,2577.6,0.03879187]
[1739153626758,0.7911,2578.3,2577.5,0.766472]
[1739153626903,0.083198,2577.8,2577.3,14.16489]
[1739153627108,3.8791,2578.0,2577.3,14.16489]
[1739153627416,3.8794,2577.8,2577.3,10.285]
[1739153627616,0.083198,2577.7,2577.3,3.785]
[1739153627833,3.87904,2578.0,2577.4,4.57463604]
[1739153628037,0.083198,2577.6,2577.5,3.87958]
[1739153628248,3.87844,2578.4,2577.7,3.87934]
[1739153628458,3.87878,2578.2,2577.6,3.0]
[1739153628666,3.87895,2578.1,2577.6,3.0]
[1739153628964,3.87878,2578.2,2577.6,7.6368946]
[1739153630044,3.87841,2578.4,2577.8,3.87927]
[1739153630560,5.32,2578.7,2578.3,3.87851]
[1739153630763,3.87763,2578.9,2578.4,3.87834]
[1739153630967,3.87762,2578.9,2578.3,0.7518]
[1739153631267,3.87762,2578.9,2577.9,0.8019]
[1739153631268,3.87825,2578.5,2577.9,0.8019]
[1739153631472,7.75659,2578.5,2577.9,0.8019]
[1739153631631,3.87825,2578.5,2577.9,0.8019]
[1739153631969,0.467922,2578.9,2577.9,0.8019]
[1739153632274,3.87891,2578.1,2577.6,1.5593346]
[1739153632454,3.87921,2577.9,2577.6,0.8019]
[1739153633171,3.87937,2577.8,2577.4,0.69476604]
[1739153633328,3.87961,2577.6,2577.3,0.8019]
[1739153633724,3.87897,2578.0,2577.0,0.8019]
[1739153633947,3.87966,2577.6,2577.0,0.8019]
[1739153634271,3.87977,2577.5,2577.0,2.08262553]
[1739153634456,7.75937,2577.6,2577.0,8.96308553]
[1739153634775,7.75944,2577.6,2577.0,8.96308553]
[1739153634931,3.87972,2577.6,2577.0,8.96308553]
[1739153635562,3.87944,2577.7,2577.2,3.0]
[1739153635730,3.87944,2577.7,2577.2,4.28433855]
[1739153635934,7.75875,2577.8,2577.2,4.28433855]
[1739153636137,3.87972,2577.6,2577.0,5.96308553]
[1739153636357,3.87992,2577.4,2577.0,2.08262553]
[1739153636869,4.66124,2578.5,2577.7,3.8794]
[1739153637024,3.87824,2578.5,2577.9,3.87908]
[1739153637230,3.87824,2578.5,2578.0,0.8019]
[1739153637479,3.87866,2578.3,2578.0,0.8019]
[1739153637832,7.7573,2578.3,2578.0,0.8019]
[1739153638033,3.87864,2578.3,2578.0,0.8019]
[1739153638372,3.87864,2578.3,2577.8,3.8019]
[1739153638579,3.8776,2579.0,2577.8,3.8019]
[1739153638580,5.32,2580.1,2577.8,4.08439604]
[1739153638765,0.19434438,2582.3,2581.8,0.2]
[1739153638969,0.1449142,2584.0,2581.9,3.16266044]
[1739153639167,3.87278,2582.2,2581.9,3.26266044]
[1739153639361,0.77389895,2583.4,2581.7,0.1]
[1739153639362,3.87092,2583.4,2581.7,0.1]
[1739153639674,3.87334,2581.8,2581.1,3.36266044]
[1739153639828,0.77863584,2582.9,2581.1,3.36266044]
[1739153639829,3.0,2582.0,2581.1,3.36266044]
[1739153640032,3.87289,2582.1,2581.1,3.36266044]
[1739153640456,0.08230134,2582.0,2581.1,3.36266044]
[1739153640772,3.95533134,2582.0,2581.1,3.36266044]
[1739153640958,3.90531134,2582.0,2581.1,3.36266044]
[1739153641163,0.08230134,2582.0,2581.1,3.36266044]
[1739153641536,0.5023,2581.7,2581.1,3.36266044]
[1739153641738,4.37574,2581.7,2580.8,4.07471]
[1739153641964,3.87376,2581.5,2580.8,0.2]
[1739153642145,0.08051563,2581.6,2580.8,0.2]
[1739153642336,0.5023,2581.7,2580.6,0.2]
[1739153642536,0.08051563,2581.5,2580.7,0.2]
[1739153642732,0.5023,2581.7,2580.7,0.2]
[1739153643230,3.87386,2581.5,2580.7,0.2]
[1739153643433,0.5023,2581.7,2580.7,0.2]
[1739153643434,7.37576,2581.7,2580.7,0.2]
[1739153643636,0.08051563,2581.6,2580.9,3.8746]
[1739153644050,0.08051563,2581.6,2581.1,3.87423]
[1739153644246,0.08051563,2581.6,2581.2,3.87415]
[1739153644571,5.32,2581.9,2581.1,4.07431]
[1739153645179,3.87299,2582.0,2581.0,3.50412423]
[1739153645180,0.08540317,2581.8,2581.4,0.2]
[1739153645535,5.32,2582.0,2581.5,3.87364]
[1739153645731,0.5023,2582.1,2581.5,3.87364]
[1739153645732,0.08289094,2581.7,2581.6,3.87356]
[1739153645936,5.32,2582.8,2582.2,3.87263]
[1739153646236,0.08289094,2582.7,2582.1,7.57692423]
[1739153646471,3.87176,2582.8,2582.1,3.70412423]
[1739153646670,0.08289094,2582.6,2582.1,3.70412423]
[1739153646835,3.87165,2582.9,2582.1,3.70412423]
[1739153647039,3.87165,2582.9,2582.1,7.57691423]
[1739153647238,0.08289094,2582.8,2582.1,7.57691423]
[1739153647483,3.87211,2582.6,2582.1,3.50412423]
[1739153647689,3.0,2582.8,2582.1,3.50412423]
[1739153647837,3.87162,2582.9,2582.1,3.50412423]
[1739153647838,0.08289094,2582.5,2582.1,3.70412423]
[1739153648037,3.87194,2582.7,2582.1,3.70412423]
[1739153648262,0.08289094,2582.6,2582.1,3.50412423]
[1739153648480,3.82208,2582.6,2582.1,3.50412423]
[1739153648782,0.08289094,2582.5,2582.1,3.70412423]
[1739153649188,3.8721,2582.6,2582.1,3.70412423]
[1739153649485,3.87222,2582.5,2581.9,0.2]
[1739153649671,3.87222,2582.5,2581.7,3.70412423]
[1739153649672,3.87236,2582.4,2581.7,3.70412423]
[1739153650044,3.95542094,2582.3,2581.7,3.70412423]
[1739153650383,3.58519094,2582.3,2581.3,0.2]
[1739153650543,3.87338,2581.8,2581.3,0.2]
[1739153650892,0.08289094,2581.7,2581.3,0.2]
[1739153651188,3.87338,2581.8,2581.2,0.8001]
[1739153651386,0.08289094,2581.6,2581.3,0.2]
[1739153651688,0.08305105,2581.5,2581.3,0.2]
[1739153651893,0.08305105,2581.5,2581.2,0.8001]
[1739153652188,3.87383,2581.5,2580.9,0.2]
[1739153652389,0.08305105,2581.4,2580.9,0.2]
[1739153652545,0.08305105,2581.4,2580.6,6.7]
[1739153652885,0.08305105,2581.4,2580.6,0.2]
[1739153652886,3.87433,2581.1,2580.6,0.2]
[1739153653075,3.95690937,2581.3,2580.6,0.2]
[1739153653272,3.87432,2581.1,2580.6,0.2]
[1739153653687,3.87461,2580.9,2580.6,0.2]
[1739153653885,0.08289937,2581.0,2580.6,0.2]
[1739153654209,3.87462,2580.9,2580.6,0.2]
[1739153654500,3.95697991,2580.9,2580.6,0.2]
[1739153654855,3.87503,2580.7,2580.2,0.12921318]
[1739153655294,3.95728754,2580.6,2580.2,0.12921318]
[1739153655500,3.87551,2580.3,2580.2,0.12921318]
[1739153656010,3.95691728,2580.3,2580.2,0.12921318]
[1739153657589,3.87611,2579.9,2579.7,0.2]
[1739153657774,3.87626,2579.8,2579.7,0.2]
[1739153657975,3.95730461,2579.8,2579.7,0.2]
[1739153658154,0.08104461,2579.8,2579.7,0.2]
[1739153658605,3.95730461,2579.8,2579.7,0.2]
[1739153658752,3.95735461,2579.8,2579.4,0.2]
[1739153658951,0.08104461,2579.8,2579.4,0.2]
[1739153659205,0.08104461,2579.8,2579.7,0.2]
[1739153659632,3.87594,2580.1,2579.5,0.2]
[1739153659755,3.87594,2580.1,2579.7,0.2]
[1739153659756,0.08068181,2579.8,2579.7,0.2]
[1739153659958,3.87614,2579.9,2579.7,0.2]
[1739153660200,0.08068181,2579.8,2579.7,0.2]
[1739153660558,0.08068181,2579.8,2579.3,3.50412423]
[1739153660559,3.87578,2580.2,2579.5,0.2]
[1739153660802,0.08068181,2579.8,2579.5,0.2]
[1739153660970,3.87622,2579.9,2579.5,0.2]
[1739153661155,0.08068181,2579.7,2579.5,0.2]
[1739153661359,3.87622,2579.9,2579.5,0.2]
[1739153661569,3.87681,2579.5,2579.3,0.2]
[1739153661773,3.87666,2579.6,2579.4,0.2]
[1739153662104,3.87686,2579.5,2579.4,0.2]
[1739153662279,3.87711,2579.3,2579.1,0.2]
[1739153662478,3.87738,2579.1,2578.8,1.0219]
[1739153662878,3.87687,2579.4,2579.0,0.2]
[1739153663205,3.87685,2579.5,2579.0,0.2]
[1739153664772,3.87713,2579.3,2579.0,0.2]
[1739153664968,3.87683,2579.5,2579.0,0.2]
[1739153665194,3.87697,2579.4,2579.0,0.2]
[1739153665509,3.8775,2579.0,2578.8,0.2]
[1739153665807,3.87762,2578.9,2578.6,0.2]
[1739153665990,7.37917,2579.4,2578.5,0.12929837]
[1739153666190,3.87807,2578.6,2578.2,1.0219]
[1739153666706,7.75584,2578.8,2578.4,0.2]
[1739153666904,3.87808,2578.6,2578.2,4.17737841]
[1739153667406,3.87777,2578.8,2578.2,4.17737841]
[1739153667581,3.87817,2578.6,2578.2,1.0219]
[1739153668419,3.87801,2578.7,2578.4,0.2]
[1739153668609,3.87809,2578.6,2578.4,0.2]
[1739153668766,3.87784,2578.8,2578.4,0.2]
[1739153668967,7.75575,2578.8,2578.4,0.2]
[1739153669402,3.87792,2578.7,2578.4,0.2]
[1739153669810,3.87792,2578.7,2578.2,1.0219]
[1739153670105,0.78387839,2579.1,2578.4,0.2]
[1739153670308,0.78387839,2579.1,2578.2,0.8219]
[1739153670309,3.87832,2578.5,2578.2,0.8219]
[1739153670803,3.87832,2578.5,2578.1,0.2]
[1739153671305,0.07849594,2578.4,2578.1,0.2]
[1739153671608,0.07849594,2578.4,2578.3,4.07852]
[1739153671807,5.32,2579.1,2578.5,0.2]
[1739153672113,5.32,2579.1,2578.6,0.8219]
[1739153672114,9.19735,2579.1,2578.6,0.8219]
[1739153672446,9.19735,2579.1,2578.6,1.311926]
[1739153672447,5.32,2579.1,2578.6,1.311926]
[1739153672740,5.32,2579.1,2578.8,0.2]
[1739153674743,3.87683,2579.5,2578.9,3.87759]
[1739153675236,3.8773,2579.2,2578.6,1.511926]
[1739153675405,3.87778,2578.8,2578.6,0.8219]
[1739153675801,3.87687,2579.4,2578.2,1.0219]
[1739153675802,3.87801,2578.7,2578.2,1.0219]
[1739153676016,3.87801,2578.7,2578.4,0.2]
[1739153676611,3.87767,2578.9,2578.4,0.2]
[1739153676813,3.87739,2579.1,2578.4,4.07827]
[1739153677016,3.87726,2579.2,2578.7,0.2]
[1739153677317,3.87704,2579.3,2578.9,0.2]
[1739153677848,3.87678,2579.5,2579.1,0.2]
[1739153678404,3.87625,2579.9,2579.3,3.87698]
[1739153678605,3.87625,2579.9,2579.5,0.8065]
[1739153679157,3.87566,2580.3,2579.7,0.2]
[1739153679320,3.87517,2580.6,2579.7,0.2]
[1739153679522,0.07563889,2580.2,2579.7,4.07641]
[1739153679750,3.87596,2580.1,2579.9,0.2]
[1739153679950,3.95154889,2580.1,2579.5,1.0065]
[1739153680156,3.87622,2579.9,2579.5,1.0065]
[1739153680488,3.87622,2579.9,2579.7,0.2]
[1739153680782,3.95151889,2580.1,2579.7,0.2]
[1739153680783,0.07563889,2579.8,2579.7,0.2]
[1739153680966,3.87597,2580.0,2579.7,0.2]
[1739153681164,0.07563889,2579.8,2579.7,0.2]
[1739153681372,3.87597,2580.0,2579.7,0.2]
[1739153681565,0.07563889,2579.8,2579.5,1.0065]
[1739153681742,3.87529,2580.5,2579.2,0.2]
[1739153681743,3.87679,2579.5,2579.2,0.2]
[1739153682094,3.87747,2579.0,2578.9,6.5]
[1739153682768,3.95310889,2579.0,2578.8,0.2]
[1739153683357,0.07563889,2579.0,2578.8,0.2]
[1739153683562,3.87693,2579.4,2579.0,0.2]
[1739153683758,3.87708,2579.3,2579.0,0.2]
[1739153684981,3.87693,2579.4,2579.0,0.2]
[1739153685292,3.87717,2579.2,2579.0,0.2]
[1739153685895,3.87717,2579.2,2578.8,0.2]
[1739153686068,3.87732,2579.1,2579.0,0.2]
[1739153686756,3.95295889,2579.1,2579.0,0.2]
[1739153688398,3.87762,2578.9,2578.8,0.2]
[1739153688562,3.87762,2578.9,2578.7,0.8065]
[1739153688762,3.95350407,2578.9,2578.7,0.8065]
[1739153689413,3.95350407,2578.9,2578.8,0.2]
[1739153689715,0.07588407,2578.9,2578.8,0.2]
[1739153690009,3.8774,2579.1,2578.8,0.2]
[1739153690460,0.07588407,2579.0,2578.8,0.2]
[1739153690997,3.87768,2578.9,2578.7,0.8065]
[1739153691200,0.07588407,2579.0,2578.6,0.2]
[1739153691400,3.87792,2578.7,2578.6,0.2]
[1739153691999,3.95380407,2578.7,2578.6,0.2]
[1739153692232,3.87808,2578.6,2578.4,0.9557]
[1739153692544,3.87783,2578.8,2578.4,0.9557]
[1739153692845,0.07588407,2578.5,2578.4,0.9557]
[1739153693331,7.75573,2578.8,2578.4,0.9557]
[1739153693643,0.07588407,2578.5,2578.4,0.9557]
[1739153693845,3.87795,2578.7,2578.4,0.9557]
[1739153694002,0.07588407,2578.5,2578.4,0.9557]
[1739153694203,3.87783,2578.8,2578.4,0.9557]
[1739153694536,3.87822,2578.5,2578.2,0.2]
[1739153694787,3.87822,2578.5,2578.4,0.2]
[1739153695142,0.07588407,2578.5,2578.4,0.2]
[1739153695354,3.87807,2578.6,2578.4,0.2]
[1739153695535,0.07588407,2578.5,2578.4,0.2]
[1739153696746,3.95410407,2578.5,2578.4,0.2]
[1739153696914,0.07588407,2578.5,2578.4,0.2]
[1739153697302,3.95410407,2578.5,2578.4,0.2]
[1739153697530,3.87843,2578.4,2578.3,0.2]
[1739153697730,3.95410407,2578.5,2578.3,0.2]
[1739153697901,3.87837,2578.4,2578.3,0.2]
[1739153698104,3.95377211,2578.4,2578.3,0.2]
[1739153698542,0.07540211,2578.4,2578.3,0.2]
[1739153699258,3.95377211,2578.4,2578.3,0.2]
[1739153699663,0.07540211,2578.4,2578.3,0.2]
[1739153700663,5.32,2579.1,2578.3,4.07852]
[1739153700664,7.75538,2578.9,2578.3,4.07852]
[1739153700871,0.07509768,2578.4,2578.3,1.31124481]
[1739153701015,3.87803,2578.7,2578.3,1.31124481]
[1739153701216,0.07509768,2578.4,2578.3,1.31124481]
[1739153701413,3.87779,2578.8,2578.3,1.31124481]
[1739153701663,0.07509768,2578.4,2578.3,1.31124481]
[1739153701966,5.32,2579.1,2578.8,0.2]
[1739153702302,5.8223,2579.3,2578.6,0.7557]
[1739153702417,5.8223,2579.3,2578.5,0.2]
[1739153702418,3.87807,2578.6,2578.5,0.2]
[1739153702618,5.8223,2579.3,2578.2,3.91096809]
[1739153702619,3.87837,2578.4,2578.2,0.7557]
[1739153702865,3.87772,2578.9,2578.1,0.2]
[1739153703026,3.87896,2578.1,2577.9,0.9557]
[1739153703225,3.87917,2577.9,2577.7,0.2]
[1739153703774,3.87899,2578.0,2577.8,0.2]
[1739153703959,3.87896,2578.1,2577.8,0.2]
[1739153704119,3.87857,2578.3,2578.0,0.2]
[1739153704469,5.32,2578.7,2578.5,0.2]
[1739153704470,3.87808,2578.6,2578.5,0.2]
[1739153704972,3.87708,2579.3,2578.8,0.2]
[1739153705125,3.8768,2579.5,2579.0,0.2]